[Event "Titled Tuesday Blitz January 25 2022"]
[White "Pakleza, Zbigniew"]
[Black "Thorhallsson, Simon"]
[WhiteFideId "1119290"]
[BlackFideId "2310090"]
[WhiteElo "2467"]
[BlackElo "2137"]
[Result "1/2-1/2"]
[Round "01"]
[TimeControl "180+1"]
[Date "2022.01.26"]
[WhiteClock "0:00:28"]
[BlackClock "0:00:07"]

1. d4 {[%clk 0:03:00]}  Nf6 {[%clk 0:02:58]} 2. Nf3 {[%clk 0:03:00]}  g6 {[%clk 0:02:57]} 3. Bf4 {[%clk 0:03:00]}  Bg7 {[%clk 0:02:57]} 4. e3 {[%clk 0:03:01]}  O-O {[%clk 0:02:57]} 5. Be2 {[%clk 0:03:01]}  d6 {[%clk 0:02:54]} 6. h3 {[%clk 0:03:02]}  c5 {[%clk 0:02:52]} 7. c3 {[%clk 0:03:02]}  Nbd7 {[%clk 0:02:42]} 8. O-O {[%clk 0:03:02]}  b6 {[%clk 0:02:42]} 9. Nbd2 {[%clk 0:03:02]}  Bb7 {[%clk 0:02:43]} 10. a4 {[%clk 0:03:03]}  Rc8 {[%clk 0:02:41]} 11. a5 {[%clk 0:03:00]}  Re8 {[%clk 0:02:28]} 12. Bh2 {[%clk 0:02:57]}  Ne4 {[%clk 0:02:11]} 13. Nxe4 {[%clk 0:02:47]}  Bxe4 {[%clk 0:02:12]} 14. Qb3 {[%clk 0:02:47]}  e5 {[%clk 0:02:07]} 15. axb6 {[%clk 0:02:25]}  axb6 {[%clk 0:02:02]} 16. dxe5 {[%clk 0:02:08]}  Nxe5 {[%clk 0:01:53]} 17. Nxe5 {[%clk 0:01:54]}  Bxe5 {[%clk 0:01:52]} 18. Bxe5 {[%clk 0:01:30]}  dxe5 {[%clk 0:01:51]} 19. Rfd1 {[%clk 0:01:22]}  Qf6 {[%clk 0:01:35]} 20. Ra6 {[%clk 0:01:15]}  Re6 {[%clk 0:01:20]} 21. Bg4 {[%clk 0:01:04]}  Qg5 {[%clk 0:01:04]} 22. f4 {[%clk 0:00:35]}  exf4 {[%clk 0:01:01]} 23. exf4 {[%clk 0:00:36]}  Qxf4 {[%clk 0:00:53]} 24. Bxe6 {[%clk 0:00:36]}  Qe3+ {[%clk 0:00:42]} 25. Kh1 {[%clk 0:00:26]}  Bxg2+ {[%clk 0:00:22]} 26. Kxg2 {[%clk 0:00:27]}  Qe2+ {[%clk 0:00:22]} 27. Kg1 {[%clk 0:00:26]}  Qe3+ {[%clk 0:00:21]} 28. Kf1 {[%clk 0:00:24]}  Qf3+ {[%clk 0:00:19]} 29. Kg1 {[%clk 0:00:24]}  Qg3+ {[%clk 0:00:17]} 30. Kh1 {[%clk 0:00:23]}  Qf3+ {[%clk 0:00:09]} 31. Kh2 {[%clk 0:00:24]}  Qf2+ {[%clk 0:00:04]} 32. Kh1 {[%clk 0:00:25]}  Qf3+ {[%clk 0:00:05]} 33. Kg1 {[%clk 0:00:26]}  Qg3+ {[%clk 0:00:05]} 34. Kf1 {[%clk 0:00:27]}  Qf3+ {[%clk 0:00:06]} 35. Ke1 {[%clk 0:00:28]}  Qe3+ {[%clk 0:00:06]} 36. Kf1 {[%clk 0:00:28]}  Qf3+ {[%clk 0:00:07]} 1/2-1/2


[Site "https://www.chess.com"]

[Event "Titled Tuesday Blitz January 25 2022"]
[White "Pap, Gyula"]
[Black "Tokman, Ariel"]
[WhiteFideId "725323"]
[BlackFideId "117420"]
[WhiteElo "2553"]
[BlackElo "2293"]
[Result "1/2-1/2"]
[Round "01"]
[TimeControl "180+1"]
[Date "2022.01.26"]
[WhiteClock "0:00:05"]
[BlackClock "0:00:08"]

1. e4 {[%clk 0:02:58]}  e5 {[%clk 0:02:59]} 2. Nf3 {[%clk 0:02:58]}  Nc6 {[%clk 0:02:59]} 3. Bb5 {[%clk 0:02:56]}  Nf6 {[%clk 0:02:59]} 4. d3 {[%clk 0:02:52]}  d6 {[%clk 0:02:58]} 5. O-O {[%clk 0:02:48]}  Be7 {[%clk 0:02:59]} 6. c3 {[%clk 0:02:49]}  O-O {[%clk 0:02:58]} 7. Re1 {[%clk 0:02:49]}  a6 {[%clk 0:02:57]} 8. Ba4 {[%clk 0:02:45]}  b5 {[%clk 0:02:55]} 9. Bc2 {[%clk 0:02:44]}  Nb8 {[%clk 0:02:55]} 10. d4 {[%clk 0:02:41]}  Nbd7 {[%clk 0:02:55]} 11. Nbd2 {[%clk 0:02:42]}  Bb7 {[%clk 0:02:51]} 12. Nf1 {[%clk 0:02:35]}  Re8 {[%clk 0:02:50]} 13. Ng3 {[%clk 0:02:35]}  Bf8 {[%clk 0:02:51]} 14. a4 {[%clk 0:02:26]}  c5 {[%clk 0:02:45]} 15. d5 {[%clk 0:02:21]}  Nb6 {[%clk 0:02:39]} 16. a5 {[%clk 0:02:16]}  Nbd7 {[%clk 0:02:25]} 17. b3 {[%clk 0:02:15]}  g6 {[%clk 0:02:24]} 18. c4 {[%clk 0:02:11]}  Bg7 {[%clk 0:02:21]} 19. Bg5 {[%clk 0:02:10]}  b4 {[%clk 0:02:16]} 20. Qd2 {[%clk 0:02:07]}  Rf8 {[%clk 0:02:15]} 21. Nh4 {[%clk 0:02:00]}  Qc7 {[%clk 0:01:58]} 22. Nhf5 {[%clk 0:01:28]}  gxf5 {[%clk 0:01:54]} 23. Nxf5 {[%clk 0:01:29]}  Kh8 {[%clk 0:01:53]} 24. Re3 {[%clk 0:01:06]}  Rg8 {[%clk 0:01:42]} 25. Rh3 {[%clk 0:00:59]}  Nf8 {[%clk 0:01:21]} 26. f4 {[%clk 0:00:39]}  Ne8 {[%clk 0:01:04]} 27. Nxg7 {[%clk 0:00:26]}  Rxg7 {[%clk 0:01:02]} 28. Bh6 {[%clk 0:00:21]}  f6 {[%clk 0:00:58]} 29. Bxg7+ {[%clk 0:00:20]}  Qxg7 {[%clk 0:00:54]} 30. Rf1 {[%clk 0:00:19]}  Ng6 {[%clk 0:00:50]} 31. f5 {[%clk 0:00:18]}  Nf4 {[%clk 0:00:41]} 32. Rh4 {[%clk 0:00:08]}  Ra7 {[%clk 0:00:38]} 33. g3 {[%clk 0:00:05]}  Qg5 {[%clk 0:00:34]} 34. Kh1 {[%clk 0:00:05]}  Bc8 {[%clk 0:00:34]} 35. Qf2 {[%clk 0:00:04]}  Nh5 {[%clk 0:00:22]} 36. Qf3 {[%clk 0:00:03]}  Nhg7 {[%clk 0:00:21]} 37. Qe2 {[%clk 0:00:02]}  Re7 {[%clk 0:00:15]} 38. Re1 {[%clk 0:00:02]}  Bd7 {[%clk 0:00:15]} 39. Rg4 {[%clk 0:00:03]}  Qh5 {[%clk 0:00:14]} 40. Kg2 {[%clk 0:00:03]}  Nc7 {[%clk 0:00:13]} 41. Rh4 {[%clk 0:00:02]}  Qg5 {[%clk 0:00:12]} 42. Qe3 {[%clk 0:00:02]}  Qxe3 {[%clk 0:00:12]} 43. Rxe3 {[%clk 0:00:03]}  Be8 {[%clk 0:00:12]} 44. Rg4 {[%clk 0:00:03]}  Bh5 {[%clk 0:00:11]} 45. Rh4 {[%clk 0:00:03]}  Be8 {[%clk 0:00:11]} 46. g4 {[%clk 0:00:04]}  Kg8 {[%clk 0:00:11]} 47. Reh3 {[%clk 0:00:04]}  Bf7 {[%clk 0:00:07]} 48. Rxh7 {[%clk 0:00:03]}  Be8 {[%clk 0:00:08]} 49. Rh8+ {[%clk 0:00:04]}  Kf7 {[%clk 0:00:08]} 50. R3h7 {[%clk 0:00:05]}  Bd7 {[%clk 0:00:06]} 51. h4 {[%clk 0:00:04]}  Re8 {[%clk 0:00:06]} 52. g5 {[%clk 0:00:04]}  Rxh8 {[%clk 0:00:06]} 53. g6+ {[%clk 0:00:03]}  Kg8 {[%clk 0:00:05]} 54. Rxh8+ {[%clk 0:00:04]}  Kxh8 {[%clk 0:00:05]} 55. Bd1 {[%clk 0:00:02]}  Be8 {[%clk 0:00:06]} 56. Bg4 {[%clk 0:00:02]}  Kg8 {[%clk 0:00:06]} 57. h5 {[%clk 0:00:02]}  Nxh5 {[%clk 0:00:05]} 58. Bxh5 {[%clk 0:00:03]}  Kg7 {[%clk 0:00:06]} 59. Kg3 {[%clk 0:00:03]}  Kh6 {[%clk 0:00:06]} 60. Kh4 {[%clk 0:00:03]}  Bd7 {[%clk 0:00:06]} 61. Bg4 {[%clk 0:00:04]}  Ne8 {[%clk 0:00:06]} 62. Bf3 {[%clk 0:00:04]}  Ng7 {[%clk 0:00:06]} 63. Bg4 {[%clk 0:00:04]}  Bc8 {[%clk 0:00:06]} 64. Bh3 {[%clk 0:00:04]}  Bd7 {[%clk 0:00:07]} 65. Bg4 {[%clk 0:00:05]}  Be8 {[%clk 0:00:07]} 66. Bh3 {[%clk 0:00:05]}  Bd7 {[%clk 0:00:08]} 67. Bg4 {[%clk 0:00:05]} 1/2-1/2


[Site "https://www.chess.com"]

[Event "Titled Tuesday Blitz January 25 2022"]
[White "Perske, Thore"]
[Black "Sjugirov, Sanan"]
[WhiteFideId "12902195"]
[BlackFideId "4189302"]
[WhiteElo "2315"]
[BlackElo "2602"]
[Result "0-1"]
[Round "01"]
[TimeControl "180+1"]
[Date "2022.01.26"]
[WhiteClock "0:00:01"]
[BlackClock "0:00:01"]

1. e4 {[%clk 0:03:00]}  c5 {[%clk 0:02:59]} 2. Nf3 {[%clk 0:02:59]}  d6 {[%clk 0:02:59]} 3. Bb5+ {[%clk 0:02:58]}  Nd7 {[%clk 0:02:58]} 4. O-O {[%clk 0:02:58]}  a6 {[%clk 0:02:58]} 5. Bd3 {[%clk 0:02:58]}  Ngf6 {[%clk 0:02:57]} 6. Re1 {[%clk 0:02:58]}  g6 {[%clk 0:02:56]} 7. a4 {[%clk 0:02:57]}  b6 {[%clk 0:02:49]} 8. c3 {[%clk 0:02:56]}  Ne5 {[%clk 0:02:45]} 9. Be2 {[%clk 0:02:48]}  Bh6 {[%clk 0:02:30]} 10. d4 {[%clk 0:02:42]}  Nxf3+ {[%clk 0:02:30]} 11. Bxf3 {[%clk 0:02:42]}  Bxc1 {[%clk 0:02:30]} 12. Qxc1 {[%clk 0:02:33]}  e5 {[%clk 0:02:30]} 13. Qd2 {[%clk 0:02:08]}  O-O {[%clk 0:02:24]} 14. Na3 {[%clk 0:02:07]}  Be6 {[%clk 0:02:18]} 15. b4 {[%clk 0:01:55]}  cxd4 {[%clk 0:02:12]} 16. cxd4 {[%clk 0:01:55]}  Qe7 {[%clk 0:02:01]} 17. d5 {[%clk 0:01:48]}  Bd7 {[%clk 0:02:01]} 18. Nc4 {[%clk 0:01:47]}  Rab8 {[%clk 0:01:47]} 19. a5 {[%clk 0:01:38]}  bxa5 {[%clk 0:01:36]} 20. bxa5 {[%clk 0:01:38]}  Bb5 {[%clk 0:01:34]} 21. Nb6 {[%clk 0:01:36]}  Nd7 {[%clk 0:01:34]} 22. Nxd7 {[%clk 0:01:29]}  Qxd7 {[%clk 0:01:35]} 23. Rec1 {[%clk 0:01:27]}  Rfc8 {[%clk 0:01:33]} 24. Rxc8+ {[%clk 0:01:25]}  Rxc8 {[%clk 0:01:32]} 25. Rc1 {[%clk 0:01:25]}  Rc7 {[%clk 0:01:27]} 26. h3 {[%clk 0:01:15]}  Qc8 {[%clk 0:01:26]} 27. Rxc7 {[%clk 0:01:15]}  Qxc7 {[%clk 0:01:27]} 28. Qb4 {[%clk 0:01:11]}  Kg7 {[%clk 0:01:23]} 29. Kh2 {[%clk 0:01:10]}  h6 {[%clk 0:01:12]} 30. h4 {[%clk 0:01:08]}  Kf8 {[%clk 0:00:53]} 31. Qd2 {[%clk 0:01:05]}  Kg7 {[%clk 0:00:53]} 32. Qb4 {[%clk 0:01:05]}  Qc5 {[%clk 0:00:31]} 33. Qd2 {[%clk 0:00:48]}  Qa3 {[%clk 0:00:28]} 34. Kg1 {[%clk 0:00:44]}  Bd3 {[%clk 0:00:14]} 35. Kh2 {[%clk 0:00:40]}  Qb3 {[%clk 0:00:12]} 36. Qe3 {[%clk 0:00:36]}  Qc2 {[%clk 0:00:10]} 37. g3 {[%clk 0:00:23]}  Bb5 {[%clk 0:00:08]} 38. Qb6 {[%clk 0:00:16]}  Qc3 {[%clk 0:00:07]} 39. Bg2 {[%clk 0:00:11]}  Qa3 {[%clk 0:00:06]} 40. Kg1 {[%clk 0:00:10]}  Qa1+ {[%clk 0:00:03]} 41. Kh2 {[%clk 0:00:10]}  Qa3 {[%clk 0:00:04]} 42. Kg1 {[%clk 0:00:10]}  Qc5 {[%clk 0:00:03]} 43. Kh2 {[%clk 0:00:07]}  Qb4 {[%clk 0:00:02]} 44. Kg1 {[%clk 0:00:06]}  g5 {[%clk 0:00:02]} 45. hxg5 {[%clk 0:00:06]}  hxg5 {[%clk 0:00:03]} 46. Kh2 {[%clk 0:00:06]}  Qa3 {[%clk 0:00:03]} 47. Kg1 {[%clk 0:00:06]}  Qb4 {[%clk 0:00:02]} 48. Kh2 {[%clk 0:00:06]}  Kg6 {[%clk 0:00:03]} 49. Kg1 {[%clk 0:00:06]}  f6 {[%clk 0:00:03]} 50. Kh2 {[%clk 0:00:06]}  Qa3 {[%clk 0:00:03]} 51. Qd8 {[%clk 0:00:04]}  Kf7 {[%clk 0:00:03]} 52. Qc7+ {[%clk 0:00:04]}  Ke8 {[%clk 0:00:02]} 53. Qb8+ {[%clk 0:00:02]}  Ke7 {[%clk 0:00:02]} 54. Qc7+ {[%clk 0:00:02]}  Bd7 {[%clk 0:00:01]} 55. Qb6 {[%clk 0:00:03]}  Qc5 {[%clk 0:00:01]} 56. Qxa6 {[%clk 0:00:01]}  Qxf2 {[%clk 0:00:01]} 57. Qb6 {[%clk 0:00:01]}  Qd2 {[%clk 0:00:01]} 0-1


[Site "https://www.chess.com"]

[Event "Titled Tuesday Blitz January 25 2022"]
[White "Podinic, Bojan"]
[Black "Shkapenko, Pavel"]
[WhiteFideId "931160"]
[BlackFideId "4151933"]
[WhiteElo "2256"]
[BlackElo "2386"]
[Result "0-1"]
[Round "01"]
[TimeControl "180+1"]
[Date "2022.01.26"]
[WhiteClock "0:00:22"]
[BlackClock "0:00:17"]

1. e4 {[%clk 0:03:00]}  e5 {[%clk 0:02:59]} 2. Nc3 {[%clk 0:03:00]}  Nf6 {[%clk 0:02:58]} 3. f4 {[%clk 0:03:00]}  d5 {[%clk 0:02:58]} 4. fxe5 {[%clk 0:03:00]}  Nxe4 {[%clk 0:02:58]} 5. Qf3 {[%clk 0:03:01]}  Nc6 {[%clk 0:02:57]} 6. Bb5 {[%clk 0:03:00]}  Nxc3 {[%clk 0:02:57]} 7. dxc3 {[%clk 0:03:01]}  Qh4+ {[%clk 0:02:57]} 8. g3 {[%clk 0:03:01]}  Qe4+ {[%clk 0:02:58]} 9. Qxe4 {[%clk 0:03:01]}  dxe4 {[%clk 0:02:58]} 10. Bxc6+ {[%clk 0:02:56]}  bxc6 {[%clk 0:02:58]} 11. Ne2 {[%clk 0:02:57]}  h5 {[%clk 0:02:58]} 12. Be3 {[%clk 0:02:51]}  h4 {[%clk 0:02:58]} 13. Kf2 {[%clk 0:02:40]}  Rh5 {[%clk 0:02:49]} 14. Bf4 {[%clk 0:02:35]}  Bg4 {[%clk 0:02:49]} 15. Nd4 {[%clk 0:02:28]}  c5 {[%clk 0:02:35]} 16. h3 {[%clk 0:02:28]}  hxg3+ {[%clk 0:02:26]} 17. Kxg3 {[%clk 0:02:28]}  Bd7 {[%clk 0:02:27]} 18. Ne2 {[%clk 0:02:19]}  Rf5 {[%clk 0:02:27]} 19. h4 {[%clk 0:02:17]}  O-O-O {[%clk 0:02:05]} 20. c4 {[%clk 0:02:14]}  g6 {[%clk 0:02:01]} 21. Rad1 {[%clk 0:02:08]}  Bg7 {[%clk 0:02:00]} 22. Rd5 {[%clk 0:02:07]}  Bc6 {[%clk 0:01:31]} 23. Rxc5 {[%clk 0:02:02]}  Kb7 {[%clk 0:01:31]} 24. Nc3 {[%clk 0:01:54]}  Bf8 {[%clk 0:01:29]} 25. Rxc6 {[%clk 0:01:19]}  Kxc6 {[%clk 0:01:28]} 26. Nd5 {[%clk 0:01:20]}  Kb7 {[%clk 0:01:10]} 27. Re1 {[%clk 0:00:55]}  c6 {[%clk 0:01:06]} 28. Ne3 {[%clk 0:00:55]}  Rh5 {[%clk 0:01:06]} 29. Ng4 {[%clk 0:00:55]}  Be7 {[%clk 0:01:05]} 30. Nf6 {[%clk 0:00:33]}  Bxf6 {[%clk 0:01:05]} 31. exf6 {[%clk 0:00:34]}  Re8 {[%clk 0:01:05]} 32. Bg5 {[%clk 0:00:33]}  Re6 {[%clk 0:01:03]} 33. Kf4 {[%clk 0:00:32]}  Rh8 {[%clk 0:01:01]} 34. Rxe4 {[%clk 0:00:31]}  Rxe4+ {[%clk 0:00:54]} 35. Kxe4 {[%clk 0:00:32]}  Re8+ {[%clk 0:00:54]} 36. Kd4 {[%clk 0:00:32]}  Re2 {[%clk 0:00:49]} 37. Kc3 {[%clk 0:00:32]}  Kc7 {[%clk 0:00:47]} 38. c5 {[%clk 0:00:31]}  Kd7 {[%clk 0:00:46]} 39. Kb3 {[%clk 0:00:29]}  Ke6 {[%clk 0:00:46]} 40. c4 {[%clk 0:00:29]}  Ke5 {[%clk 0:00:45]} 41. Kc3 {[%clk 0:00:29]}  Rf2 {[%clk 0:00:39]} 42. a3 {[%clk 0:00:27]}  a5 {[%clk 0:00:37]} 43. Kb3 {[%clk 0:00:27]}  Kd4 {[%clk 0:00:36]} 44. Ka4 {[%clk 0:00:22]}  Rxb2 {[%clk 0:00:35]} 45. Kxa5 {[%clk 0:00:22]}  Kxc4 {[%clk 0:00:34]} 46. Be3 {[%clk 0:00:22]}  Rb3 {[%clk 0:00:34]} 47. Bf4 {[%clk 0:00:22]}  Kxc5 {[%clk 0:00:32]} 48. a4 {[%clk 0:00:22]}  Kd5 {[%clk 0:00:30]} 49. Bg5 {[%clk 0:00:21]}  c5 {[%clk 0:00:30]} 50. Ka6 {[%clk 0:00:20]}  c4 {[%clk 0:00:30]} 51. a5 {[%clk 0:00:21]}  c3 {[%clk 0:00:30]} 52. Ka7 {[%clk 0:00:21]}  c2 {[%clk 0:00:28]} 53. a6 {[%clk 0:00:21]}  Rb1 {[%clk 0:00:16]} 54. Ka8 {[%clk 0:00:20]}  Kc6 {[%clk 0:00:15]} 55. a7 {[%clk 0:00:19]}  c1=Q {[%clk 0:00:14]} 56. Bxc1 {[%clk 0:00:19]}  Rxc1 {[%clk 0:00:15]} 57. Kb8 {[%clk 0:00:19]}  Rb1+ {[%clk 0:00:15]} 58. Kc8 {[%clk 0:00:20]}  Ra1 {[%clk 0:00:15]} 59. Kb8 {[%clk 0:00:20]}  Kd6 {[%clk 0:00:15]} 60. a8=Q {[%clk 0:00:19]}  Rxa8+ {[%clk 0:00:16]} 61. Kxa8 {[%clk 0:00:20]}  Ke6 {[%clk 0:00:16]} 62. Kb7 {[%clk 0:00:21]}  Kxf6 {[%clk 0:00:17]} 63. Kc6 {[%clk 0:00:22]}  Ke5 {[%clk 0:00:17]} 64. Kc5 {[%clk 0:00:21]}  f5 {[%clk 0:00:17]} 65. Kc4 {[%clk 0:00:22]}  Ke4 {[%clk 0:00:17]} 0-1


[Site "https://www.chess.com"]

[Event "Titled Tuesday Blitz January 25 2022"]
[White "Richter, Nils"]
[Black "Kosakowski, Jakub"]
[WhiteFideId "12990809"]
[BlackFideId "1185080"]
[WhiteElo "2289"]
[BlackElo "2476"]
[Result "0-1"]
[Round "01"]
[TimeControl "180+1"]
[Date "2022.01.26"]
[WhiteClock "0:00:14"]
[BlackClock "0:00:11"]

1. Nf3 {[%clk 0:03:00]}  d5 {[%clk 0:02:51]} 2. b3 {[%clk 0:02:58]}  Bf5 {[%clk 0:02:49]} 3. Bb2 {[%clk 0:02:58]}  e6 {[%clk 0:02:43]} 4. e3 {[%clk 0:02:56]}  h6 {[%clk 0:02:42]} 5. c4 {[%clk 0:02:52]}  Nf6 {[%clk 0:02:41]} 6. Nc3 {[%clk 0:02:51]}  c6 {[%clk 0:02:40]} 7. Be2 {[%clk 0:02:51]}  Bd6 {[%clk 0:02:39]} 8. Rc1 {[%clk 0:02:50]}  Nbd7 {[%clk 0:02:39]} 9. d3 {[%clk 0:02:47]}  O-O {[%clk 0:02:39]} 10. O-O {[%clk 0:02:46]}  Bh7 {[%clk 0:02:38]} 11. Nd4 {[%clk 0:02:40]}  Qe7 {[%clk 0:02:26]} 12. cxd5 {[%clk 0:02:34]}  exd5 {[%clk 0:02:23]} 13. Bf3 {[%clk 0:02:30]}  Ne5 {[%clk 0:02:16]} 14. Be2 {[%clk 0:02:24]}  Rfe8 {[%clk 0:02:16]} 15. Nf3 {[%clk 0:02:23]}  Rad8 {[%clk 0:02:09]} 16. Nxe5 {[%clk 0:02:22]}  Qxe5 {[%clk 0:02:09]} 17. g3 {[%clk 0:02:20]}  Qe6 {[%clk 0:01:45]} 18. Bf3 {[%clk 0:02:18]}  Qf5 {[%clk 0:01:36]} 19. Be2 {[%clk 0:02:11]}  h5 {[%clk 0:01:36]} 20. Na4 {[%clk 0:02:00]}  h4 {[%clk 0:01:34]} 21. Nc5 {[%clk 0:01:51]}  hxg3 {[%clk 0:01:21]} 22. hxg3 {[%clk 0:01:49]}  Re7 {[%clk 0:01:15]} 23. Kg2 {[%clk 0:01:41]}  Bg6 {[%clk 0:01:12]} 24. Rh1 {[%clk 0:01:40]}  b6 {[%clk 0:01:03]} 25. Na4 {[%clk 0:01:34]}  c5 {[%clk 0:01:03]} 26. Bxf6 {[%clk 0:01:16]}  Qxf6 {[%clk 0:01:03]} 27. Bf3 {[%clk 0:01:17]}  Be5 {[%clk 0:00:54]} 28. Rh4 {[%clk 0:01:12]}  Bf5 {[%clk 0:00:23]} 29. Qh1 {[%clk 0:01:10]}  g6 {[%clk 0:00:24]} 30. e4 {[%clk 0:00:59]}  dxe4 {[%clk 0:00:23]} 31. dxe4 {[%clk 0:01:00]}  Bc8 {[%clk 0:00:22]} 32. Rd1 {[%clk 0:00:56]}  Rxd1 {[%clk 0:00:21]} 33. Qxd1 {[%clk 0:00:56]}  Re8 {[%clk 0:00:22]} 34. Qd5 {[%clk 0:00:32]}  Rd8 {[%clk 0:00:19]} 35. Qc4 {[%clk 0:00:29]}  a6 {[%clk 0:00:15]} 36. Qe2 {[%clk 0:00:28]}  Bb7 {[%clk 0:00:12]} 37. Rh1 {[%clk 0:00:20]}  Bd4 {[%clk 0:00:11]} 38. Rc1 {[%clk 0:00:19]}  Qe5 {[%clk 0:00:10]} 39. Qc4 {[%clk 0:00:15]}  b5 {[%clk 0:00:09]} 40. Qc2 {[%clk 0:00:12]}  bxa4 {[%clk 0:00:10]} 41. bxa4 {[%clk 0:00:13]}  Re8 {[%clk 0:00:10]} 42. Rb1 {[%clk 0:00:11]}  Bxe4 {[%clk 0:00:10]} 43. Bxe4 {[%clk 0:00:12]}  Qxe4+ {[%clk 0:00:10]} 44. Qxe4 {[%clk 0:00:12]}  Rxe4 {[%clk 0:00:11]} 45. Rb8+ {[%clk 0:00:13]}  Kg7 {[%clk 0:00:11]} 46. Ra8 {[%clk 0:00:14]}  Re2 {[%clk 0:00:11]} 47. Rxa6 {[%clk 0:00:15]}  Rxf2+ {[%clk 0:00:11]} 48. Kh3 {[%clk 0:00:15]}  Rxa2 {[%clk 0:00:12]} 49. a5 {[%clk 0:00:16]}  c4 {[%clk 0:00:12]} 50. Ra8 {[%clk 0:00:17]}  c3 {[%clk 0:00:12]} 51. a6 {[%clk 0:00:18]}  c2 {[%clk 0:00:12]} 52. Rc8 {[%clk 0:00:19]}  Be3 {[%clk 0:00:12]} 53. a7 {[%clk 0:00:16]}  c1=Q {[%clk 0:00:11]} 54. a8=Q {[%clk 0:00:15]}  Rxa8 {[%clk 0:00:11]} 55. Rxa8 {[%clk 0:00:15]}  Qh1+ {[%clk 0:00:10]} 56. Kg4 {[%clk 0:00:14]}  f5# {[%clk 0:00:11]} 0-1


[Site "https://www.chess.com"]

[Event "Titled Tuesday Blitz January 25 2022"]
[White "Ruperez Benito, Antonio"]
[Black "Saya, Ethan"]
[WhiteFideId "22245049"]
[BlackFideId "26095181"]
[WhiteElo "2249"]
[BlackElo "2255"]
[Result "1-0"]
[Round "01"]
[TimeControl "180+1"]
[Date "2022.01.26"]
[WhiteClock "0:01:09"]
[BlackClock "0:00:08"]

1. d4 {[%clk 0:03:00]}  Nf6 {[%clk 0:02:54]} 2. c4 {[%clk 0:03:00]}  e6 {[%clk 0:02:54]} 3. Nf3 {[%clk 0:02:48]}  b6 {[%clk 0:02:51]} 4. g3 {[%clk 0:02:47]}  Bb7 {[%clk 0:02:51]} 5. Bg2 {[%clk 0:02:48]}  Be7 {[%clk 0:02:51]} 6. O-O {[%clk 0:02:49]}  O-O {[%clk 0:02:52]} 7. Nc3 {[%clk 0:02:49]}  Ne4 {[%clk 0:02:53]} 8. Qc2 {[%clk 0:02:46]}  Nxc3 {[%clk 0:02:49]} 9. bxc3 {[%clk 0:02:46]}  f5 {[%clk 0:02:47]} 10. a4 {[%clk 0:02:37]}  a5 {[%clk 0:02:44]} 11. Rb1 {[%clk 0:02:32]}  Be4 {[%clk 0:02:38]} 12. Qb2 {[%clk 0:02:27]}  Bxb1 {[%clk 0:02:36]} 13. Qxb1 {[%clk 0:02:28]}  Nc6 {[%clk 0:02:22]} 14. d5 {[%clk 0:02:10]}  exd5 {[%clk 0:02:16]} 15. cxd5 {[%clk 0:02:11]}  Na7 {[%clk 0:02:13]} 16. Nd4 {[%clk 0:01:56]}  g6 {[%clk 0:02:05]} 17. e4 {[%clk 0:01:54]}  fxe4 {[%clk 0:01:32]} 18. Bxe4 {[%clk 0:01:55]}  Bf6 {[%clk 0:01:21]} 19. Ba3 {[%clk 0:01:38]}  Re8 {[%clk 0:01:19]} 20. d6 {[%clk 0:01:34]}  Bxd4 {[%clk 0:00:42]} 21. cxd4 {[%clk 0:01:28]}  Nc6 {[%clk 0:00:42]} 22. Bxg6 {[%clk 0:01:22]}  Re6 {[%clk 0:00:22]} 23. Bxh7+ {[%clk 0:01:18]}  Kh8 {[%clk 0:00:23]} 24. d5 {[%clk 0:01:18]}  Rf6 {[%clk 0:00:17]} 25. dxc6 {[%clk 0:01:17]}  dxc6 {[%clk 0:00:14]} 26. dxc7 {[%clk 0:01:17]}  Qxc7 {[%clk 0:00:13]} 27. Bb2 {[%clk 0:01:17]}  Qxh7 {[%clk 0:00:14]} 28. Bxf6+ {[%clk 0:01:16]}  Kg8 {[%clk 0:00:14]} 29. Qxh7+ {[%clk 0:01:15]}  Kxh7 {[%clk 0:00:14]} 30. Rb1 {[%clk 0:01:15]}  Rb8 {[%clk 0:00:14]} 31. Be5 {[%clk 0:01:15]}  Rb7 {[%clk 0:00:14]} 32. Bd4 {[%clk 0:01:15]}  b5 {[%clk 0:00:14]} 33. Rc1 {[%clk 0:01:10]}  Rc7 {[%clk 0:00:09]} 34. axb5 {[%clk 0:01:10]}  Rd7 {[%clk 0:00:07]} 35. bxc6 {[%clk 0:01:09]}  Rxd4 {[%clk 0:00:07]} 36. c7 {[%clk 0:01:09]}  Rc4 {[%clk 0:00:08]} 37. Rxc4 {[%clk 0:01:09]} 1-0


[Site "https://www.chess.com"]

[Event "Titled Tuesday Blitz January 25 2022"]
[White "Sadhwani, Raunak"]
[Black "Ogloblin, Nikolay"]
[WhiteFideId "35093487"]
[BlackFideId "4139658"]
[WhiteElo "2616"]
[BlackElo "2306"]
[Result "1-0"]
[Round "01"]
[TimeControl "180+1"]
[Date "2022.01.26"]
[WhiteClock "0:00:13"]
[BlackClock "0:01:11"]

1. e4 {[%clk 0:02:57]}  c5 {[%clk 0:02:58]} 2. Nc3 {[%clk 0:02:56]}  a6 {[%clk 0:02:58]} 3. Nf3 {[%clk 0:02:55]}  e6 {[%clk 0:02:57]} 4. d4 {[%clk 0:02:54]}  cxd4 {[%clk 0:02:57]} 5. Nxd4 {[%clk 0:02:54]}  Qc7 {[%clk 0:02:58]} 6. Bd3 {[%clk 0:02:53]}  Nf6 {[%clk 0:02:58]} 7. O-O {[%clk 0:02:50]}  Bc5 {[%clk 0:02:56]} 8. Nb3 {[%clk 0:02:49]}  Bb4 {[%clk 0:02:56]} 9. Bd2 {[%clk 0:02:48]}  Nc6 {[%clk 0:02:55]} 10. a3 {[%clk 0:02:45]}  Be7 {[%clk 0:02:55]} 11. f4 {[%clk 0:02:46]}  d6 {[%clk 0:02:56]} 12. Qf3 {[%clk 0:02:46]}  b5 {[%clk 0:02:55]} 13. Rae1 {[%clk 0:02:44]}  Bb7 {[%clk 0:02:55]} 14. g4 {[%clk 0:02:35]}  h5 {[%clk 0:02:55]} 15. g5 {[%clk 0:02:35]}  Nd7 {[%clk 0:02:52]} 16. Qh3 {[%clk 0:02:23]}  Nc5 {[%clk 0:02:49]} 17. g6 {[%clk 0:02:13]}  Bf6 {[%clk 0:02:35]} 18. gxf7+ {[%clk 0:02:12]}  Qxf7 {[%clk 0:02:34]} 19. Nxc5 {[%clk 0:02:00]}  dxc5 {[%clk 0:02:34]} 20. e5 {[%clk 0:02:00]}  Be7 {[%clk 0:02:34]} 21. f5 {[%clk 0:01:44]}  O-O-O {[%clk 0:02:30]} 22. fxe6 {[%clk 0:01:43]}  Qe8 {[%clk 0:02:29]} 23. Ne4 {[%clk 0:01:22]}  c4 {[%clk 0:02:21]} 24. Nd6+ {[%clk 0:01:22]}  Bxd6 {[%clk 0:02:14]} 25. exd6 {[%clk 0:01:13]}  Rxd6 {[%clk 0:02:14]} 26. Bf4 {[%clk 0:00:47]}  Rxd3 {[%clk 0:01:53]} 27. cxd3 {[%clk 0:00:46]}  Qe7 {[%clk 0:01:54]} 28. dxc4 {[%clk 0:00:39]}  g5 {[%clk 0:01:51]} 29. Be5 {[%clk 0:00:30]}  g4 {[%clk 0:01:49]} 30. Qe3 {[%clk 0:00:20]}  Re8 {[%clk 0:01:41]} 31. Rf7 {[%clk 0:00:19]}  Qd8 {[%clk 0:01:24]} 32. Rc7+ {[%clk 0:00:19]}  Qxc7 {[%clk 0:01:25]} 33. Bxc7 {[%clk 0:00:20]}  Kxc7 {[%clk 0:01:25]} 34. cxb5 {[%clk 0:00:20]}  axb5 {[%clk 0:01:25]} 35. Qc5 {[%clk 0:00:21]}  Re7 {[%clk 0:01:18]} 36. Qxh5 {[%clk 0:00:16]}  Kd6 {[%clk 0:01:17]} 37. Qxb5 {[%clk 0:00:15]}  Bc8 {[%clk 0:01:16]} 38. Rd1+ {[%clk 0:00:15]}  Kc7 {[%clk 0:01:16]} 39. Re1 {[%clk 0:00:12]}  Bxe6 {[%clk 0:01:16]} 40. Qc5 {[%clk 0:00:13]}  Re8 {[%clk 0:01:14]} 41. b4 {[%clk 0:00:13]}  Kd7 {[%clk 0:01:14]} 42. Rd1+ {[%clk 0:00:13]}  Kc7 {[%clk 0:01:11]} 43. b5 {[%clk 0:00:13]}  Bd7 {[%clk 0:01:11]} 44. Rxd7+ {[%clk 0:00:13]}  Kxd7 {[%clk 0:01:11]} 45. Qxc6+ {[%clk 0:00:13]} 1-0


[Site "https://www.chess.com"]